bitfinex-derivatives/quotes_ETHF0:USTF0_20250104
["timestamp","ask_amount","ask_price","bid_price","bid_amount"]
[1735998036116,0.27502,3637.4,3637.3,0.27502]
[1735998036316,0.27501,3637.5,3637.4,0.27501]
[1735998036515,3.2078,3637.7,3637.2,2.21385796]
[1735998036814,0.27501,3637.4,3637.3,0.27502]
[1735998037115,0.27502,3637.3,3637.2,2.21385796]
[1735998037714,0.27504,3637.1,3637.0,0.27504]
[1735998038413,0.9346,3637.1,3636.9,2.21385796]
[1735998038719,0.27504,3637.0,3636.9,2.21385796]
[1735998039710,0.27506,3636.8,3636.7,0.27506]
[1735998039909,0.27507,3636.7,3636.6,2.48892796]
[1735998040116,0.27506,3636.8,3636.6,2.21385796]
[1735998040309,0.27506,3636.8,3636.7,0.27506]
[1735998040714,0.9346,3637.1,3636.6,2.21385796]
[1735998040916,0.27505,3636.9,3636.8,0.27506]
[1735998041414,0.9346,3637.1,3636.7,0.27507]
[1735998041415,0.27505,3637.0,3636.7,0.27507]
[1735998041722,0.27505,3637.0,3636.8,0.27505]
[1735998041918,0.27505,3636.9,3636.6,2.21385796]
[1735998042123,0.27505,3636.9,3636.7,0.27506]
[1735998042322,0.9346,3637.1,3636.7,0.27506]
[1735998042513,0.27506,3636.8,3636.7,0.27506]
[1735998042721,0.27507,3636.7,3636.6,2.21385796]
[1735998043415,0.27507,3636.6,3636.5,3.2078]
[1735998043616,0.27505,3636.9,3636.8,0.27506]
[1735998044019,0.9346,3637.1,3636.6,2.21385796]
[1735998044421,0.27507,3636.7,3636.6,2.48892796]
[1735998044621,0.27507,3636.7,3636.3,1.8669]
[1735998044622,3.2078,3636.9,3636.3,1.8669]
[1735998044821,0.27509,3636.4,3636.3,2.14199]
[1735998045717,0.27507,3636.6,3636.5,0.27508]
[1735998046619,0.27507,3636.7,3636.6,0.27507]
[1735998047924,0.27506,3636.8,3636.7,0.27506]
[1735998048113,3.48285,3636.9,3636.8,0.27506]
[1735998048824,3.48285,3636.9,3636.4,2.21385796]
[1735998049336,0.9853,3637.2,3636.7,2.21385796]
[1735998049523,0.9853,3637.2,3637.0,0.27504]
[1735998049722,0.9853,3637.2,3636.8,0.9423]
[1735998049923,0.27504,3637.0,3636.9,0.928]
[1735998051628,0.27504,3637.0,3636.4,5.42165796]
[1735998051629,0.27507,3636.7,3636.6,0.27507]
[1735998052024,0.27507,3636.6,3636.5,1.8536]
[1735998052222,0.27507,3636.7,3636.6,0.27507]
[1735998052929,0.27507,3636.6,3636.5,2.12868]
[1735998054828,0.27507,3636.6,3636.5,1.8536]
[1735998056030,0.27508,3636.5,3636.4,2.21385796]
[1735998058432,0.27508,3636.5,3636.4,2.48894796]
[1735998059131,0.27508,3636.5,3636.4,2.21385796]
[1735998059629,0.27508,3636.5,3636.4,2.48894796]
[1735998059833,3.2078,3636.9,3636.4,2.21385796]
[1735998060137,3.2078,3636.9,3636.7,2.21385796]
[1735998060332,3.48286,3636.9,3636.8,2.11676]
[1735998061234,3.2078,3636.9,3636.8,2.11676]
[1735998062335,0.27504,3637.1,3636.8,1.8417]
[1735998062536,0.27504,3637.1,3637.0,0.27504]
[1735998063230,0.27504,3637.1,3636.9,0.9504]
[1735998063231,0.9853,3637.2,3636.4,2.21385796]
[1735998063437,0.27508,3636.6,3636.5,0.27508]
[1735998063735,3.2078,3637.0,3636.4,3.18165796]
[1735998063937,0.27508,3636.6,3636.5,0.27508]
[1735998064135,3.2078,3637.0,3636.4,3.18165796]
[1735998064340,0.27506,3636.8,3636.7,0.27506]
[1735998064535,0.27507,3636.7,3636.6,0.27507]
[1735998065537,0.9853,3637.2,3636.5,2.21385796]
[1735998065733,0.9853,3637.2,3636.8,2.21385796]
[1735998065934,0.27505,3637.0,3636.9,0.27505]
[1735998066335,0.27504,3637.0,3636.9,0.27505]
[1735998066535,0.27504,3637.0,3636.9,1.19365]
[1735998066735,0.27504,3637.0,3636.9,2.08985]
[1735998067431,0.27504,3637.0,3636.9,1.8148]
[1735998067931,0.27504,3637.0,3636.9,2.08985]
[1735998068639,0.9853,3637.2,3636.5,8.68734277]
[1735998068937,0.9853,3637.2,3636.6,0.27507]
[1735998068938,0.27507,3636.7,3636.6,0.27507]
[1735998070733,0.27507,3636.6,3636.5,2.21385796]
[1735998070936,1.20377,3636.6,3636.5,2.21385796]
[1735998071631,1.20377,3636.6,3636.5,2.48893796]
[1735998072737,1.20377,3636.6,3636.5,2.21385796]
[1735998073240,3.2078,3637.0,3636.9,0.27505]
[1735998073241,3.48285,3637.0,3636.9,0.27505]
[1735998073436,3.2078,3637.0,3636.9,2.48890796]
[1735998075641,3.2078,3637.0,3636.6,6.47348481]
[1735998075642,0.27507,3636.7,3636.6,4.82748481]
[1735998075941,7.48892796,3636.7,3636.6,1.89708481]
[1735998076140,0.27507,3636.6,3636.5,8.64235199]
[1735998076332,44.28287,3636.6,3636.5,8.64235199]
[1735998076537,44.28287,3636.6,3636.5,7.17685199]
[1735998076738,44.28287,3636.6,3636.5,4.34645199]
[1735998077336,3.48287,3636.6,3636.5,4.34645199]
[1735998077536,8.33513207,3636.6,3635.6,0.27514]
[1735998077742,0.27513,3635.9,3635.6,0.27514]
[1735998078547,3.2078,3636.0,3635.5,0.27515]
[1735998078548,0.27513,3635.8,3635.5,0.27515]
[1735998078941,2.43150195,3635.8,3635.5,0.27515]
[1735998079542,2.43150195,3635.8,3635.4,5.06495796]
[1735998079543,2.15637195,3635.8,3635.7,2.21385796]
[1735998079744,3.23455793,3636.0,3635.7,5.42165796]
[1735998079945,3.23455793,3636.0,3635.9,0.27513]
[1735998080341,3.23455793,3636.1,3635.7,5.42165796]
[1735998080644,3.23455793,3636.1,3636.0,2.21385796]
[1735998080944,3.23455793,3636.1,3636.0,2.48897796]
[1735998081148,3.23455793,3636.1,3636.0,2.21385796]
[1735998081445,3.50966793,3636.1,3636.0,2.21385796]
[1735998082152,0.27511,3636.1,3636.0,2.21385796]
[1735998084949,0.27511,3636.1,3636.0,4.86965796]
[1735998085352,3.23455793,3636.4,3636.0,4.86965796]
[1735998085650,0.2751,3636.2,3636.0,5.14476796]
[1735998086348,0.27511,3636.1,3636.0,4.86965796]
[1735998087552,0.27511,3636.1,3636.0,2.6558]
[1735998087553,3.48291,3636.1,3636.0,2.6558]
[1735998088961,3.48291,3636.1,3636.0,1.7739]
[1735998089161,3.2078,3636.1,3635.7,2.21385796]
[1735998089358,0.27513,3635.8,3635.7,2.21385796]
[1735998090861,3.2078,3636.1,3635.7,2.21385796]
[1735998091066,3.2078,3636.1,3636.0,2.21385796]
[1735998091256,3.2078,3636.1,3636.0,2.48897796]
[1735998092966,0.27511,3636.2,3636.1,0.27511]
[1735998093162,0.27511,3636.2,3636.1,2.06561]
[1735998093362,0.27511,3636.2,3636.1,2.94731]
[1735998094664,0.27511,3636.2,3636.1,2.6722]
[1735998094867,3.2078,3636.4,3636.0,2.21385796]
[1735998095067,0.27511,3636.1,3636.0,2.21385796]
[1735998097066,0.2751,3636.3,3636.0,2.21385796]
[1735998097271,0.2751,3636.2,3636.1,0.27511]
[1735998097467,3.48289,3636.4,3636.3,2.21385796]
[1735998097966,3.48289,3636.4,3636.3,4.33445796]
[1735998098163,3.48289,3636.4,3636.3,4.05935796]
[1735998099468,3.48289,3636.4,3636.3,4.33445796]
[1735998099665,3.48289,3636.4,3636.3,4.05935796]
[1735998100167,3.2078,3636.4,3636.3,4.33445796]
[1735998101168,3.48289,3636.4,3636.3,4.33445796]
[1735998101769,3.48289,3636.4,3636.3,4.05935796]
[1735998101970,3.48289,3636.4,3636.3,4.33445796]
[1735998103266,3.48289,3636.4,3636.3,4.05935796]
[1735998106569,3.48289,3636.4,3636.3,4.33445796]
[1735998106767,3.48289,3636.4,3636.3,4.05935796]
[1735998108464,3.48289,3636.4,3636.3,4.33445796]
[1735998109770,3.2078,3636.4,3636.3,4.33445796]
[1735998110876,3.48289,3636.4,3636.3,4.33445796]
[1735998111374,3.2078,3636.4,3636.3,4.33445796]
[1735998112569,3.48289,3636.4,3636.3,4.33445796]
[1735998112973,3.2078,3636.4,3636.3,4.33445796]
[1735998113578,3.23455793,3636.8,3636.7,0.27507]
[1735998113966,3.23455793,3636.9,3636.6,2.21385796]
[1735998114171,3.23455793,3636.9,3636.8,0.27506]
[1735998115375,3.2078,3637.0,3636.7,4.31783227]
[1735998115579,3.2078,3637.0,3636.9,2.48890796]
[1735998115981,3.2078,3637.0,3636.9,4.30910796]
[1735998120381,3.48284,3637.0,3636.9,4.30910796]
[1735998120982,3.48284,3637.0,3636.9,2.21385796]
[1735998121287,3.48284,3637.0,3636.9,2.48890796]
[1735998127191,3.2078,3637.0,3636.9,2.48890796]
[1735998127991,3.48284,3637.0,3636.9,0.27505]
[1735998128194,3.2078,3637.0,3636.8,0.9732]
[1735998128393,0.27505,3636.9,3636.8,1.24825]
[1735998128590,0.27505,3636.9,3636.8,0.9732]
[1735998128793,0.27507,3636.7,3636.6,4.31783227]
[1735998129088,0.27507,3636.7,3636.6,4.59290227]
[1735998129494,0.27507,3636.7,3636.6,4.31783227]
[1735998130393,0.27507,3636.7,3636.6,4.59290227]
[1735998130894,0.27507,3636.7,3636.6,0.27507]
[1735998131492,0.27508,3636.6,3636.5,0.27508]
[1735998135096,0.27508,3636.6,3636.4,4.14055796]
[1735998135097,0.27507,3636.7,3636.6,0.27507]
[1735998137103,6.44235793,3636.9,3636.8,0.27506]
[1735998137306,6.44235793,3636.9,3636.8,2.48891796]
[1735998138496,3.2078,3636.9,3636.8,2.48891796]
[1735998139107,3.2078,3636.9,3636.8,3.38931796]
[1735998139904,3.2078,3636.9,3636.8,7.70715023]
[1735998140099,3.48285,3636.9,3636.8,7.70715023]
[1735998140407,3.48285,3636.9,3636.8,6.80675023]
[1735998141105,3.2078,3636.9,3636.8,2.48891796]
[1735998144809,3.2078,3636.9,3636.8,6.80675023]
[1735998146139,3.2078,3636.9,3636.8,2.48891796]
[1735998146329,3.50959793,3637.1,3637.0,0.27504]
[1735998147113,3.23455793,3637.1,3637.0,0.27504]
[1735998147314,3.23455793,3637.2,3637.1,0.27504]
[1735998147516,3.23455793,3637.2,3637.1,2.48889796]
[1735998148111,3.23455793,3637.2,3637.1,3.42569796]
[1735998148820,6.44235793,3637.3,3637.1,3.15065796]
[1735998149119,6.44235793,3637.3,3637.2,0.27503]
[1735998149415,6.71737793,3637.3,3637.2,0.27503]
[1735998149608,6.44235793,3637.3,3637.2,0.27503]
[1735998150108,6.85496309,3637.3,3637.2,0.27503]
[1735998150911,7.12998309,3637.3,3637.2,0.27503]
[1735998151507,6.44235793,3637.3,3637.1,3.15065796]
[1735998151716,0.27503,3637.2,3637.1,3.42568796]
[1735998152910,3.50958793,3637.2,3637.1,3.42568796]
[1735998154613,3.50958793,3637.2,3637.1,3.15065796]
[1735998155318,0.27504,3637.1,3637.0,4.31783227]
[1735998155512,1.99084,3637.1,3637.0,4.31783227]
[1735998156813,0.27507,3636.7,3636.6,5.51020227]
[1735998157021,0.41262359,3637.1,3636.6,5.23513227]
[1735998157210,0.68766359,3637.1,3637.0,2.48889796]
[1735998157409,0.68766359,3637.1,3636.9,0.27505]
[1735998157410,0.41262359,3637.1,3636.9,0.27505]
[1735998157620,0.41262359,3637.1,3637.0,0.27504]
[1735998158015,4.60098541,3637.2,3637.0,0.27504]
[1735998158217,4.32595541,3637.2,3637.1,0.27504]
[1735998158520,4.32595541,3637.2,3637.1,2.21324]
[1735998159322,3.65726637,3637.2,3637.1,2.21324]
[1735998160925,3.65726637,3637.2,3637.1,6.53107227]
[1735998163525,3.24464278,3637.3,3637.1,8.42084378]
[1735998163825,3.24464278,3637.3,3637.2,1.27343]
[1735998165125,3.65726637,3637.4,3637.3,0.27502]
[1735998165326,3.65726637,3637.4,3637.3,2.48887796]
[1735998166226,3.2078,3637.5,3637.4,0.27501]
[1735998167129,3.2078,3637.5,3637.4,4.59707443]
[1735998167331,3.24464278,3637.7,3637.6,0.275]
[1735998167534,3.24464278,3637.7,3637.6,2.48885796]
[1735998168425,3.24464278,3638.0,3637.6,2.21385796]
[1735998168631,3.24464278,3638.0,3637.9,0.27498]
[1735998169034,3.24464278,3638.0,3637.9,2.48883796]
[1735998169832,4.32595541,3638.2,3638.1,0.27496]
[1735998170226,2.34500923,3638.4,3638.3,0.27494]
[1735998170430,2.34500923,3638.4,3638.3,5.69659796]
[1735998170638,3.24028631,3638.4,3638.3,5.69659796]
[1735998172432,0.27489,3639.0,3638.9,0.2749]
[1735998172733,4.0287,3639.2,3638.9,2.48875796]
[1735998172734,0.27489,3639.1,3638.9,2.48875796]
[1735998173041,4.0287,3639.2,3638.9,2.48875796]
[1735998173337,4.0287,3639.2,3638.9,2.21385796]
[1735998173536,4.30358,3639.2,3639.0,0.27489]
[1735998174030,3.2078,3639.2,3639.1,0.27488]
[1735998175037,4.44134,3639.7,3638.9,5.42165796]
[1735998175233,4.44134,3639.7,3639.4,2.21385796]
[1735998175234,0.27485,3639.6,3639.4,2.21385796]
[1735998175935,0.27485,3639.6,3639.4,2.48871796]
[1735998176335,4.1665,3639.7,3639.4,2.21385796]
[1735998176336,1.23885,3639.5,3639.4,2.21385796]
[1735998177238,1.23885,3639.5,3638.9,3.2078]
[1735998177441,3.2078,3639.3,3638.8,2.21385796]
[1735998177643,0.2749,3638.9,3638.8,2.21385796]
[1735998178542,3.4827,3638.9,3638.8,2.21385796]
[1735998180439,0.27492,3638.7,3638.5,2.48878796]
[1735998181143,0.27492,3638.7,3638.6,0.27492]
[1735998181345,0.9259,3638.8,3638.7,0.27491]
[1735998181534,1.20081,3638.8,3638.7,0.27491]
[1735998182247,0.9259,3638.8,3638.7,0.27491]
[1735998182639,1.20081,3638.8,3638.7,0.27491]
[1735998183140,0.9259,3638.8,3638.6,0.27492]
[1735998183444,1.20081,3638.8,3638.6,0.27492]
[1735998184038,1.20081,3638.8,3638.5,2.21385796]
[1735998184039,3.4827,3638.9,3638.8,0.27491]
[1735998184238,3.4827,3638.9,3638.8,2.48876796]
[1735998184847,3.2078,3638.9,3638.8,2.48876796]
[1735998185047,0.2749,3639.0,3638.8,2.48876796]
[1735998185250,0.2749,3638.9,3638.8,2.21385796]
[1735998185651,3.4827,3638.9,3638.8,2.21385796]
[1735998185948,0.2749,3638.9,3638.8,2.21385796]
[1735998186148,3.4827,3638.9,3638.8,2.21385796]
[1735998186543,3.2078,3638.9,3638.5,2.21385796]
[1735998186745,0.27494,3638.4,3638.3,0.27494]
[1735998187851,0.27493,3638.5,3638.4,0.27493]
[1735998188048,3.2078,3638.9,3638.2,4.18875796]
[1735998188251,0.27493,3638.6,3638.5,2.48878796]
[1735998189050,0.27493,3638.6,3638.5,2.21385796]
[1735998189553,0.27491,3638.8,3638.5,2.21385796]
[1735998189754,0.27491,3638.8,3638.7,0.27491]
[1735998189942,0.2749,3638.9,3638.5,2.21385796]
[1735998190148,0.2749,3638.9,3638.8,2.21385796]
[1735998190648,3.2078,3638.9,3638.5,2.21385796]
[1735998191055,0.27491,3638.8,3638.7,0.27491]
[1735998193154,0.27491,3638.8,3638.5,2.21385796]
[1735998193155,0.9228,3639.1,3638.5,2.21385796]
[1735998193361,0.9228,3639.1,3638.8,2.21385796]
[1735998193560,0.9228,3639.1,3638.9,0.967]
[1735998193852,0.27489,3639.0,3638.9,1.895]
[1735998194656,0.977,3639.3,3638.9,1.895]
[1735998194954,3.2078,3639.7,3639.2,2.21385796]
[1735998195155,3.2078,3639.7,3639.5,0.27485]
[1735998195156,0.27485,3639.6,3639.5,0.27485]
[1735998196052,3.2078,3639.7,3638.9,2.8162]
[1735998196252,0.27485,3639.6,3639.5,2.48870796]
[1735998196466,3.48265,3639.7,3639.5,2.48870796]
[1735998196968,3.48265,3639.7,3639.5,2.21385796]
[1735998197863,3.48265,3639.7,3639.6,1.21925]
[1735998198063,3.48265,3639.7,3639.6,0.9444]
[1735998198862,3.48265,3639.7,3639.6,1.21925]
[1735998199269,3.2078,3639.7,3639.6,1.21925]
[1735998200866,3.48264,3639.7,3639.6,1.21925]
[1735998201061,3.2078,3639.7,3639.6,1.21925]
[1735998201269,3.2078,3639.7,3639.6,3.24345]
[1735998201566,3.48264,3639.7,3639.6,3.24345]
[1735998203065,3.48264,3639.7,3639.6,2.9686]
[1735998204269,3.48264,3639.7,3639.6,3.24345]
[1735998205773,3.2078,3639.7,3639.6,3.24345]
[1735998207168,3.48264,3639.7,3639.6,3.24345]
[1735998211670,3.48264,3639.7,3639.5,2.21385796]
[1735998211671,3.2078,3639.7,3639.5,2.21385796]
[1735998211871,0.27485,3639.6,3639.5,2.21385796]
[1735998212273,0.27485,3639.6,3639.5,2.48870796]
[1735998213163,3.48264,3639.7,3639.6,0.27485]
[1735998213367,3.2078,3639.7,3639.6,0.27485]
[1735998213563,3.2078,3639.7,3639.6,1.25855]
[1735998216967,3.2078,3639.7,3639.3,4.29280172]
[1735998217172,3.2078,3639.7,3639.4,0.27486]
[1735998217173,0.27486,3639.5,3639.4,0.27486]
[1735998217471,0.27486,3639.5,3639.4,2.48871796]
[1735998217775,3.2078,3639.7,3639.4,2.21385796]
[1735998217971,0.27485,3639.6,3639.5,0.27485]
[1735998219374,3.48264,3639.7,3639.6,0.27485]
[1735998223970,3.2078,3639.7,3639.6,0.27485]
[1735998230485,3.2078,3639.7,3639.4,3.18355796]
[1735998230486,1.8729,3639.9,3639.4,7.47635968]
[1735998230682,2.1497171,3640.0,3639.8,2.21385796]
[1735998230883,2.1497171,3640.0,3639.9,1.31892]
[1735998232287,4.408,3640.2,3640.1,0.27481]
[1735998232678,1.2002,3640.2,3640.1,0.27481]
[1735998235184,0.27481,3640.1,3640.0,0.27481]
[1735998235591,0.27482,3639.9,3639.8,6.78148968]
[1735998235981,0.27482,3639.9,3639.8,4.29280172]
[1735998236288,2.1497171,3640.0,3639.6,4.29280172]
[1735998236588,0.27484,3639.7,3639.6,4.56765172]
[1735998236787,0.27484,3639.7,3639.6,4.29280172]
[1735998236989,1.31684,3639.7,3639.6,4.29280172]
[1735998237786,0.27485,3639.6,3639.5,4.29280172]
[1735998237976,1.29515,3639.6,3639.5,4.29280172]
[1735998239092,0.27487,3639.3,3639.2,2.48872796]
[1735998239890,1.26537,3639.3,3639.2,2.21385796]
[1735998240083,1.26537,3639.3,3639.2,2.48873796]
[1735998240391,1.26537,3639.3,3639.2,6.50665968]
[1735998240786,1.26537,3639.3,3639.2,6.78153968]
[1735998241688,0.9905,3639.3,3639.2,6.78153968]
[1735998241888,1.26537,3639.3,3639.2,6.78153968]
[1735998242187,4.23256915,3639.3,3639.2,6.78153968]
[1735998243187,3.15189469,3639.3,3639.2,2.48873796]
[1735998243589,3.42676469,3639.3,3639.2,2.48873796]
[1735998243891,3.42676469,3639.3,3639.2,2.21385796]
[1735998244689,0.27488,3639.2,3639.1,6.71408258]
[1735998244984,0.27488,3639.2,3639.1,6.43920258]
[1735998245588,0.27488,3639.1,3639.0,4.31798201]
[1735998245786,1.24418,3639.1,3639.0,4.31798201]
[1735998246994,0.27489,3639.0,3638.9,2.48875796]
[1735998247293,0.27489,3639.0,3638.9,2.21385796]
[1735998247483,0.27489,3639.0,3638.9,2.48875796]
[1735998247690,0.27489,3639.0,3638.9,2.21385796]
[1735998247889,3.48269,3639.0,3638.9,2.21385796]
[1735998248097,5.64272973,3639.0,3638.9,2.21385796]
[1735998248500,2.43492973,3639.0,3638.9,2.21385796]
[1735998248794,2.43492973,3639.0,3638.9,2.48875796]
[1735998249001,2.43492973,3639.0,3638.9,2.21385796]
[1735998249494,5.64272973,3639.0,3638.9,2.21385796]
[1735998249682,5.36783973,3639.0,3638.7,4.31798201]
[1735998249887,0.27491,3638.8,3638.7,4.31798201]
[1735998250997,1.30951,3638.8,3638.7,2.43198201]
[1735998251298,0.27494,3638.4,3638.3,2.43198201]
[1735998251594,3.48274,3638.4,3638.3,2.43198201]
[1735998252387,3.48274,3638.4,3637.8,0.9948]
[1735998252388,6.86038802,3638.4,3637.8,0.9948]
[1735998252587,0.27501,3637.5,3637.4,10.63906054]
[1735998252890,0.27501,3637.5,3637.4,11.91757054]
[1735998252891,3.2078,3637.5,3637.4,11.91757054]
[1735998253595,0.275,3637.6,3637.4,11.91757054]
[1735998253798,1.0346,3637.8,3637.4,11.64256054]
[1735998253991,0.27499,3637.7,3637.5,0.275]
[1735998254295,0.275,3637.6,3637.4,5.47836796]
[1735998254588,0.27501,3637.5,3637.4,5.20335796]
[1735998254796,0.27501,3637.5,3637.4,2.9895]
[1735998256995,0.27501,3637.5,3637.4,1.9947]
[1735998259889,0.27501,3637.5,3637.4,0.9912]
[1735998260289,0.27501,3637.5,3636.9,0.9796]
[1735998260290,5.42165796,3637.5,3636.9,0.9796]
[1735998260491,3.2078,3637.0,3636.9,2.48890796]
[1735998260797,3.2078,3637.0,3636.9,2.21385796]
[1735998260798,3.48284,3637.0,3636.9,2.21385796]
[1735998264193,3.2078,3637.0,3636.9,2.21385796]
[1735998264390,3.2078,3637.0,3636.9,2.48890796]
[1735998266696,3.2078,3637.8,3636.9,5.42165796]
[1735998266897,0.27499,3637.7,3637.6,0.27499]
[1735998267297,3.2078,3637.8,3637.5,0.275]
[1735998267495,3.2078,3637.8,3637.3,2.21385796]
[1735998267703,0.27499,3637.7,3637.6,0.27499]
[1735998268000,3.2078,3637.8,3637.3,5.42165796]
[1735998268202,0.275,3637.7,3637.5,0.275]
[1735998268794,0.275,3637.7,3637.3,5.42165796]
[1735998269000,0.275,3637.7,3637.6,0.275]
[1735998269304,3.2078,3637.8,3637.3,5.42165796]
[1735998269601,3.48278,3637.8,3637.6,2.48884796]
[1735998270400,0.27499,3637.7,3637.6,2.48884796]
[1735998270599,3.48279,3637.8,3637.6,2.48884796]
[1735998270805,0.27499,3637.7,3637.6,2.21385796]
[1735998271199,3.48279,3637.8,3637.6,2.48885796]
[1735998272207,3.48279,3637.8,3637.7,0.9868]
[1735998272398,0.9747,3638.1,3637.7,0.9868]
[1735998272598,0.27497,3638.0,3637.7,0.9868]
[1735998272797,0.27497,3638.0,3637.8,0.27498]
[1735998273708,0.27498,3637.9,3637.8,0.27498]
[1735998273910,0.27501,3637.5,3637.3,2.48886796]
[1735998274204,0.68741,3638.1,3637.5,0.275]
[1735998274205,0.275,3637.7,3637.5,0.275]
[1735998274405,3.2078,3637.8,3637.5,0.275]
[1735998274607,0.275,3637.6,3637.5,0.275]
[1735998275107,3.2078,3637.8,3637.3,3.20065796]
[1735998275407,3.2078,3637.8,3637.7,0.27499]
[1735998280220,0.27497,3638.0,3637.9,0.27497]
[1735998281109,3.48275,3638.2,3638.1,0.27496]
[1735998281809,3.48275,3638.2,3638.1,2.48881796]
[1735998282011,3.2078,3638.2,3638.1,2.48881796]
[1735998282212,3.2078,3638.2,3638.1,3.50031796]
[1735998284220,3.48275,3638.2,3638.1,3.50031796]
[1735998284610,3.48275,3638.2,3638.1,1.28646]
[1735998287417,3.2078,3638.2,3638.1,1.28646]
[1735998288319,0.27495,3638.3,3638.1,1.0115]
[1735998288513,0.27495,3638.3,3638.2,0.27495]
[1735998289528,3.2078,3638.6,3638.1,1.0115]
[1735998289827,0.27494,3638.5,3638.4,0.27493]
[1735998290119,0.27494,3638.4,3638.3,0.27494]
[1735998290726,3.2078,3638.6,3638.1,1.0115]
[1735998290923,0.27495,3638.3,3638.2,0.27495]
[1735998291927,3.2078,3638.6,3638.1,1.0115]
[1735998292128,0.27494,3638.4,3638.3,0.27494]
[1735998292627,0.27495,3638.3,3638.2,0.27495]
[1735998293624,3.2078,3638.6,3638.1,1.0115]
[1735998293625,5.36517877,3638.6,3638.1,1.0115]
[1735998293826,0.27493,3638.5,3638.4,0.27494]
[1735998295726,0.27493,3638.5,3638.2,0.27495]
[1735998295921,3.48273,3638.6,3638.5,0.27493]
[1735998296228,5.64010877,3638.6,3638.5,0.27493]
[1735998296624,0.27493,3638.5,3638.4,0.27493]
[1735998299429,3.2078,3638.6,3638.1,3.22535796]
[1735998299627,0.27493,3638.5,3638.4,0.27493]
[1735998300329,0.27493,3638.5,3638.4,1.27252066]
[1735998300531,0.27493,3638.5,3638.4,0.99759066]
[1735998301329,0.27493,3638.5,3638.4,1.27253066]
[1735998301826,3.2078,3638.6,3638.5,0.27493]
[1735998302734,4.36509877,3638.7,3638.6,0.27492]
[1735998303034,4.09017877,3638.7,3638.6,1.27251066]
[1735998303331,2.20771,3638.7,3638.6,1.27251066]
[1735998303932,2.20771,3638.7,3638.6,0.99759066]
[1735998304229,1.9328,3638.7,3638.4,1.27252066]
[1735998304528,2.20771,3638.7,3638.6,0.99759066]
[1735998304929,2.20771,3638.7,3638.6,1.27251066]
[1735998306726,2.15737877,3638.9,3638.6,0.99759066]
[1735998306926,2.15737877,3638.9,3638.8,1.27250066]
[1735998307126,2.15737877,3638.9,3638.8,2.27009132]
[1735998307327,6.44785959,3639.0,3638.9,0.2749]
[1735998307927,3.24005959,3639.0,3638.9,0.2749]
[1735998309437,3.24005959,3639.0,3638.8,0.99759066]
[1735998309438,0.27487,3639.3,3639.2,0.27488]
[1735998309635,0.27487,3639.3,3639.2,1.27247066]
[1735998310031,2.15692806,3639.5,3639.2,0.99759066]
[1735998310230,2.15692806,3639.5,3639.4,2.48371442]
[1735998310637,2.15692806,3639.5,3639.4,3.44761442]
[1735998312132,3.24005959,3639.7,3639.4,3.17275442]
[1735998312133,3.51489959,3639.7,3639.4,3.17275442]
[1735998312438,3.48264,3639.8,3639.4,3.17275442]
[1735998312832,3.2078,3639.8,3639.7,0.27484]
[1735998313028,3.2078,3639.8,3639.7,2.20885442]
[1735998313434,3.2078,3639.8,3639.7,0.27484]
[1735998313835,0.27483,3639.9,3639.7,0.27484]
[1735998314031,0.27483,3639.9,3639.6,0.27484]
[1735998314434,0.27483,3639.9,3639.7,0.27484]
[1735998316047,2.15692806,3640.1,3639.4,3.17275442]
[1735998316343,0.27482,3640.0,3639.8,0.27483]
[1735998316538,0.27482,3640.0,3639.9,2.0193]
[1735998316739,0.27482,3640.0,3639.9,2.29412]
[1735998317347,0.27482,3640.0,3639.9,2.0193]
[1735998318440,2.15692806,3640.4,3639.9,8.1103]
[1735998318638,2.15692806,3640.4,3640.3,2.48364442]
[1735998320151,0.27478,3640.6,3640.4,0.27479]
[1735998320344,0.27479,3640.4,3640.2,0.2748]
[1735998320540,0.27478,3640.5,3640.3,0.27479]
[1735998321242,0.27478,3640.5,3640.1,3.2078]
[1735998321546,0.27477,3640.6,3640.4,0.27479]
[1735998321750,0.27478,3640.5,3640.4,0.27479]
[1735998321949,0.27477,3640.6,3640.4,0.27479]
[1735998322448,0.27478,3640.5,3640.4,0.27479]
[1735998322750,3.2078,3640.5,3639.9,1.01]
[1735998322949,0.27482,3640.0,3639.7,1.21183]
[1735998323150,0.9712,3639.9,3639.7,1.21183]
[1735998323349,1.9471,3639.9,3639.7,1.21183]
[1735998323550,2.22193,3639.9,3639.7,1.21183]
[1735998323951,1.9471,3639.9,3639.8,0.27483]
[1735998325855,1.9471,3639.9,3639.6,2.20885442]
[1735998326053,2.22193,3639.9,3639.7,0.27484]
[1735998326761,5.1549,3639.9,3639.6,2.20885442]
[1735998327055,0.27484,3639.8,3639.6,2.48370442]
[1735998327262,5.1549,3639.9,3639.6,2.20885442]
[1735998327451,0.9933,3639.7,3639.1,1.03]
[1735998327657,0.27488,3639.2,3639.0,2.48374442]
[1735998327855,0.27489,3639.0,3638.7,3.2078]
[1735998328052,0.27489,3639.0,3638.8,0.2749]
[1735998328257,2.21669,3639.1,3638.8,0.27491]
[1735998328452,1.9418,3639.1,3638.7,5.41665442]
[1735998328653,0.9375,3639.1,3639.0,2.48374442]
[1735998328853,0.27487,3639.3,3639.1,0.27488]
[1735998330147,3.2078,3639.5,3639.1,0.27488]
[1735998330354,3.2078,3639.5,3639.4,2.20885442]
[1735998330857,3.2078,3639.5,3639.4,2.48371442]
[1735998331659,3.2078,3639.5,3639.4,2.20885442]
[1735998331855,3.2078,3639.5,3639.1,2.20885442]
[1735998332056,0.27488,3639.2,3639.1,2.20885442]
[1735998332360,0.27487,3639.3,3639.1,2.20885442]
[1735998332758,0.27488,3639.2,3639.1,2.20885442]
[1735998333461,3.2078,3639.5,3639.1,2.20885442]
[1735998333655,2.21665,3639.6,3639.2,0.27488]
[1735998333863,1.9418,3639.6,3639.4,2.48371442]
[1735998334057,2.21665,3639.6,3639.4,2.48371442]
[1735998334656,0.27486,3639.4,3639.3,0.9957]
[1735998334958,1.9418,3639.6,3639.1,2.20885442]